fUSD/lending_fUSD_20250804
["ID","MTS","AMOUNT","RATE_DAILY","PERIOD"]
[377265431,1754308249695,-165.39,0.00044725,30]
[377265433,1754308249704,-172.88,0.00044725,30]
[377265435,1754308249713,-150.0,0.00044725,30]
[377265437,1754308249723,-359.08,0.00044725,30]
[377265439,1754308249733,-165.39,0.00044725,30]
[377265441,1754308249742,-172.88,0.00044725,30]
[377265443,1754308249752,-150.0,0.00044725,30]
[377265445,1754308249762,-359.08,0.00044725,30]
[377265447,1754308249771,-165.39,0.00044725,30]
[377265449,1754308249781,-172.88,0.00044725,30]
[377265451,1754308249790,-150.0,0.00044725,30]
[377265453,1754308249799,-359.08,0.00044725,30]
[377265455,1754308249808,-165.39,0.00044725,30]
[377265457,1754308249818,-172.88,0.00044725,30]
[377265459,1754308249827,-150.0,0.00044725,30]
[377265461,1754308249836,-271.82,0.00044725,30]
[377265463,1754308249846,-359.08,0.00044725,30]
[377265465,1754308249855,-150.0,0.00044725,30]
[377265467,1754308249864,-359.08,0.00044725,30]
[377265469,1754308249873,-172.88,0.00044725,30]
[377265471,1754308249885,-308.545148,0.000448,27]
[377265473,1754308249894,-504.0,0.00044851,10]
[377265475,1754308249904,-2358.58,0.00044911,30]
[377265477,1754308249913,-463.01,0.00044922,30]
[377265479,1754308249923,-814.61,0.00044922,30]
[377265481,1754308249932,-196.69,0.00044922,30]
[377265483,1754308249942,-300.71,0.00044922,30]
[377265485,1754308249951,-546.27,0.00044922,30]
[377265487,1754308249961,-151.39,0.00044922,30]
[377265489,1754308249970,-818.41,0.00044922,30]
[377265491,1754308249980,-172.88,0.00044922,30]
[377265493,1754308249989,-289.43,0.00044922,30]
[377265495,1754308249999,-466.93,0.00044922,30]
[377265497,1754308250009,-172.88,0.00044922,30]
[377265499,1754308250019,-172.88,0.00044922,30]
[377265501,1754308250028,-172.88,0.00044922,30]
[377265503,1754308250037,-172.88,0.00044922,30]
[377265505,1754308250047,-587.24,0.0004493,120]
[377265507,1754308250056,-400.0,0.0004493,120]
[377265509,1754308250066,-157.56474305,0.0004493,120]
[377265511,1754308250075,-400.0,0.0004493,120]
[377265513,1754308250085,-400.0,0.0004493,120]
[377265515,1754308250094,-486.1,0.0004493,120]
[377265517,1754308250104,-400.0,0.0004493,120]
[377265519,1754308250113,-502.2,0.0004493,120]
[377265521,1754308250123,-400.0,0.0004493,120]
[377265523,1754308250134,-400.0,0.0004493,120]
[377265525,1754308250143,-400.0,0.0004493,120]
[377265527,1754308250153,-400.0,0.0004493,120]
[377265528,1754308250162,-500.0,0.0004493,120]
[377265530,1754308250172,-195.66,0.00044931,120]
[377265532,1754308250181,-359.08,0.00044948,30]
[377265534,1754308250191,-172.88,0.00044948,30]
[377265536,1754308250201,-150.0,0.00044948,30]
[377265538,1754308250211,-172.88,0.00044948,30]
[377265540,1754308250220,-359.08,0.00044948,30]
[377265542,1754308250230,-150.0,0.00044948,30]
[377265544,1754308250239,-172.88,0.00044948,30]
[377265546,1754308250249,-172.88,0.00044948,30]
[377265548,1754308250258,-150.0,0.00044948,30]
[377265550,1754308250267,-150.0,0.00044948,30]
[377265552,1754308250278,-172.88,0.00044948,30]
[377265554,1754308250294,-172.88,0.00044948,30]
[377265556,1754308250303,-150.52,0.00044948,30]
[377265558,1754308250313,-150.0,0.00044948,30]
[377265560,1754308250322,-150.0,0.00044948,30]
[377265562,1754308250332,-150.0,0.00044948,30]
[377265564,1754308250341,-150.0,0.00044948,30]
[377265566,1754308250351,-466.15,0.00044948,30]
[377265568,1754308250360,-306.54,0.00044948,30]
[377265570,1754308250370,-150.0,0.00044948,30]
[377265573,1754308250380,-150.0,0.00044948,30]
[377265575,1754308250391,-150.0,0.00044948,30]
[377265577,1754308250403,-150.0,0.00044948,30]
[377265578,1754308250412,-150.0,0.00044948,30]
[377265580,1754308250424,-150.0,0.00044948,30]
[377265583,1754308250435,-373.35,0.00044948,30]
[377265584,1754308250445,-150.0,0.00044948,30]
[377265587,1754308250456,-150.0,0.00044948,30]
[377265588,1754308250467,-344.79,0.00044948,30]
[377265590,1754308250478,-150.0,0.00044948,30]
[377265593,1754308250489,-150.0,0.00044948,30]
[377265595,1754308250499,-150.0,0.00044948,30]
[377265597,1754308250508,-150.0,0.00044948,30]
[377265599,1754308250518,-150.0,0.00044948,30]
[377265601,1754308250527,-150.0,0.00044948,30]
[377265603,1754308250537,-150.0,0.00044948,30]
[377265605,1754308250546,-150.0,0.00044948,30]
[377265607,1754308250555,-150.0,0.00044948,30]
[377265609,1754308250564,-166.51,0.00044948,30]
[377265611,1754308250573,-466.93,0.00044948,30]
[377265613,1754308250582,-818.41,0.00044948,30]
[377265614,1754308250591,-818.41,0.00044948,30]
[377265617,1754308250602,-466.93,0.00044948,30]
[377265619,1754308250611,-818.41,0.00044948,30]
[377265621,1754308250621,-466.93,0.00044948,30]
[377265623,1754308250631,-466.93,0.00044948,30]
[377265625,1754308250640,-466.93,0.00044948,30]
[377265627,1754308250650,-711.0,0.0004496,2]
[377265629,1754308250665,-30214.80104593,0.00045,2]
[377265631,1754308250674,-151.0,0.00045,120]
[377265633,1754308250683,-151.0,0.00045,120]
[377265635,1754308250692,-1553.1224872,0.00045,20]
[377265637,1754308250702,-9795.20485475,0.00045045,15]
[377265639,1754308250711,-150.0,0.00045194,2]
[377265641,1754308250721,-587.24,0.00045204,120]
[377265642,1754308250730,-400.0,0.00045204,120]
[377265645,1754308250740,-400.0,0.00045204,120]
[377265647,1754308250749,-400.0,0.00045204,120]
[377265649,1754308250759,-486.1,0.00045204,120]
[377265651,1754308250769,-400.0,0.00045204,120]
[377265653,1754308250778,-502.2,0.00045204,120]
[377265655,1754308250789,-325.00735926,0.00045204,120]
[377265656,1754308250799,-400.0,0.00045204,120]
[377265658,1754308250809,-400.0,0.00045204,120]
[377265660,1754308250820,-400.0,0.00045204,120]
[377265663,1754308250830,-586.61884654,0.00045204,120]
[377265665,1754308250840,-171.00283647,0.00045221,15]
[377265667,1754308250849,-409.0,0.00045254,60]
[377265669,1754308250860,-214.21,0.000453,30]
[377265671,1754308250870,-648.38,0.00045302,120]
[377265673,1754308250879,-846.39,0.000454,14]
[377265675,1754308250889,-666.0,0.00045424,120]
[377265677,1754308250899,-666.0,0.00045424,120]
[377265679,1754308250908,-666.0,0.00045424,120]
[377265681,1754308250918,-666.0,0.00045424,120]
[377265683,1754308250927,-666.0,0.00045424,120]
[377265685,1754308250936,-666.0,0.00045424,120]
[377265687,1754308250945,-666.0,0.00045424,120]
[377265688,1754308250954,-587.24,0.00045478,120]
[377265690,1754308250964,-400.0,0.00045478,120]
[377265692,1754308250974,-400.0,0.00045478,120]
[377265695,1754308250984,-400.0,0.00045478,120]
[377265696,1754308250993,-486.1,0.00045478,120]
[377265698,1754308251002,-257.91890724,0.00045478,120]
[377265700,1754308251012,-502.2,0.00045478,120]
[377265703,1754308251022,-400.0,0.00045478,120]
[377265704,1754308251031,-395.626577,0.00045478,120]
[377265706,1754308251041,-400.0,0.00045478,120]
[377265709,1754308251052,-152.0,0.00045488,5]
[377265710,1754308251062,-2218.9,0.00045594,120]
[377265712,1754308251072,-999.0,0.00045616,120]
[377265714,1754308251081,-504.0,0.00045649,10]
[377265716,1754308251091,-587.24,0.00045752,120]
[377265718,1754308251100,-400.0,0.00045752,120]
[377265720,1754308251110,-400.0,0.00045752,120]
[377265722,1754308251120,-400.0,0.00045752,120]
[377265724,1754308251129,-486.1,0.00045752,120]
[377265726,1754308251139,-502.2,0.00045752,120]
[377265728,1754308251148,-400.0,0.00045752,120]
[377265730,1754308251159,-500.0,0.00045752,120]
[377265733,1754308251169,-500.0,0.00045752,120]
[377265734,1754308251178,-500.0,0.00045752,120]
[377265737,1754308251188,-500.0,0.00045752,120]
[377265738,1754308251197,-500.0,0.00045752,120]
[377265741,1754308251207,-500.0,0.00045752,120]
[377265743,1754308251216,-500.0,0.00045752,120]
[377265745,1754308251225,-500.0,0.00045752,120]
[377265747,1754308251234,-500.0,0.00045752,120]
[377265749,1754308251244,-500.0,0.00045752,120]
[377265751,1754308251253,-500.0,0.00045752,120]
[377265753,1754308251262,-500.0,0.00045752,120]
[377265754,1754308251272,-500.0,0.00045752,120]
[377265756,1754308251282,-500.0,0.00045752,120]
[377265759,1754308251291,-500.0,0.00045752,120]
[377265762,1754308251428,-500.0,0.00045752,120]
[377265764,1754308251438,-500.0,0.00045752,120]
[377265766,1754308251447,-500.0,0.00045752,120]
[377265768,1754308251456,-500.0,0.00045752,120]
[377265770,1754308251465,-500.0,0.00045752,120]
[377265772,1754308251475,-500.0,0.00045752,120]
[377265774,1754308251485,-500.0,0.00045752,120]
[377265776,1754308251494,-500.0,0.00045752,120]
[377265778,1754308251505,-500.0,0.00045752,120]
[377265780,1754308251515,-500.0,0.00045752,120]
[377265782,1754308251525,-500.0,0.00045752,120]
[377265784,1754308251534,-500.0,0.00045752,120]
[377265786,1754308251544,-500.0,0.00045752,120]
[377265788,1754308251554,-500.0,0.00045752,120]
[377265789,1754308251563,-500.0,0.00045752,120]
[377265791,1754308251572,-500.0,0.00045752,120]
[377265793,1754308251582,-500.0,0.00045752,120]
[377265795,1754308251592,-500.0,0.00045752,120]
[377265797,1754308251601,-500.0,0.00045752,120]
[377265799,1754308251612,-500.0,0.00045752,120]
[377265801,1754308251621,-500.0,0.00045752,120]
[377265802,1754308251632,-500.0,0.00045752,120]
[377265804,1754308251642,-500.0,0.00045752,120]
[377265806,1754308251652,-500.0,0.00045752,120]
[377265809,1754308251662,-500.0,0.00045752,120]
[377265810,1754308251672,-500.0,0.00045752,120]
[377265812,1754308251683,-500.0,0.00045752,120]
[377265814,1754308251693,-500.0,0.00045752,120]
[377265816,1754308251702,-500.0,0.00045752,120]
[377265818,1754308251712,-500.0,0.00045752,120]
[377265820,1754308251721,-500.0,0.00045752,120]
[377265822,1754308251730,-500.0,0.00045752,120]
[377265824,1754308251740,-500.0,0.00045752,120]
[377265826,1754308251750,-500.0,0.00045752,120]
[377265828,1754308251759,-500.0,0.00045752,120]
[377265830,1754308251769,-500.0,0.00045752,120]
[377265832,1754308251779,-500.0,0.00045752,120]
[377265834,1754308251788,-500.0,0.00045752,120]
[377265836,1754308251798,-500.0,0.00045752,120]
[377265838,1754308251808,-500.0,0.00045752,120]
[377265840,1754308251818,-500.0,0.00045752,120]
[377265842,1754308251827,-508.0,0.00045752,120]
[377265844,1754308251837,-500.0,0.00045752,120]
[377265846,1754308251846,-500.0,0.00045752,120]
[377265848,1754308251856,-500.0,0.00045752,120]
[377265850,1754308251865,-500.0,0.00045752,120]
[377265852,1754308251875,-500.0,0.00045752,120]
[377265854,1754308251886,-500.0,0.00045752,120]
[377265856,1754308251896,-500.0,0.00045752,120]
[377265858,1754308251906,-500.0,0.00045752,120]
[377265860,1754308251916,-500.0,0.00045752,120]
[377265862,1754308251925,-500.0,0.00045752,120]
[377265864,1754308251935,-500.0,0.00045752,120]
[377265866,1754308251944,-500.0,0.00045752,120]
[377265868,1754308251955,-500.0,0.00045752,120]
[377265870,1754308251964,-500.0,0.00045752,120]
[377265872,1754308251974,-500.0,0.00045752,120]
[377265874,1754308251983,-500.0,0.00045752,120]
[377265876,1754308251992,-500.0,0.00045752,120]
[377265878,1754308252002,-500.0,0.00045752,120]
[377265880,1754308252012,-500.0,0.00045752,120]
[377265882,1754308252021,-500.0,0.00045752,120]
[377265884,1754308252031,-500.0,0.00045752,120]
[377265885,1754308252041,-500.0,0.00045752,120]
[377265887,1754308252051,-500.0,0.00045752,120]
[377265889,1754308252060,-500.0,0.00045752,120]
[377265891,1754308252070,-500.0,0.00045752,120]
[377265893,1754308252080,-500.0,0.00045752,120]
[377265895,1754308252089,-500.0,0.00045752,120]
[377265897,1754308252099,-500.0,0.00045752,120]
[377265899,1754308252108,-500.0,0.00045752,120]
[377265901,1754308252117,-500.0,0.00045752,120]
[377265903,1754308252127,-500.0,0.00045752,120]
[377265905,1754308252139,-500.0,0.00045752,120]
[377265907,1754308252148,-500.0,0.00045752,120]
[377265909,1754308252157,-500.0,0.00045752,120]
[377265911,1754308252167,-500.0,0.00045752,120]
[377265913,1754308252176,-500.0,0.00045752,120]
[377265915,1754308252186,-500.0,0.00045752,120]
[377265917,1754308252196,-500.0,0.00045752,120]
[377265918,1754308252205,-500.0,0.00045752,120]
[377265920,1754308252215,-500.0,0.00045752,120]
[377265922,1754308252226,-500.0,0.00045752,120]
[377265924,1754308252236,-500.0,0.00045752,120]
[377265926,1754308252246,-500.0,0.00045752,120]
[377265928,1754308252256,-500.0,0.00045752,120]
[377265930,1754308252265,-500.0,0.00045752,120]
[377265932,1754308252275,-500.0,0.00045752,120]
[377265934,1754308252285,-500.0,0.00045752,120]
[377265936,1754308252294,-500.0,0.00045752,120]
[377265938,1754308252304,-500.0,0.00045752,120]
[377265940,1754308252314,-500.0,0.00045752,120]
[377265942,1754308252324,-500.0,0.00045752,120]
[377265944,1754308252334,-500.0,0.00045752,120]
[377265946,1754308252343,-500.0,0.00045752,120]
[377265948,1754308252353,-500.0,0.00045752,120]
[377265950,1754308252362,-500.0,0.00045752,120]
[377265952,1754308252371,-500.0,0.00045752,120]
[377265954,1754308252383,-500.0,0.00045752,120]
[377265956,1754308252395,-500.0,0.00045752,120]
[377265958,1754308252405,-500.0,0.00045752,120]
[377265960,1754308252415,-500.0,0.00045752,120]
[377265962,1754308252424,-500.0,0.00045752,120]
[377265964,1754308252435,-500.0,0.00045752,120]
[377265966,1754308252444,-500.0,0.00045752,120]
[377265968,1754308252454,-500.0,0.00045752,120]
[377265970,1754308252464,-500.0,0.00045752,120]
[377265972,1754308252477,-500.0,0.00045752,120]
[377265974,1754308252486,-500.0,0.00045752,120]
[377265976,1754308252496,-500.0,0.00045752,120]
[377265978,1754308252505,-500.0,0.00045752,120]
[377265980,1754308252514,-500.0,0.00045752,120]
[377265982,1754308252524,-500.0,0.00045752,120]
[377265984,1754308252534,-500.0,0.00045752,120]
[377265986,1754308252543,-500.0,0.00045752,120]
[377265988,1754308252552,-500.0,0.00045752,120]
[377265990,1754308252562,-500.0,0.00045752,120]
[377265992,1754308252572,-500.0,0.00045752,120]
[377265994,1754308252582,-500.0,0.00045752,120]
[377265996,1754308252591,-500.0,0.00045752,120]
[377265998,1754308252601,-500.0,0.00045752,120]
[377266000,1754308252610,-500.0,0.00045752,120]
[377266002,1754308252619,-500.0,0.00045752,120]
[377266004,1754308252628,-500.0,0.00045752,120]
[377266006,1754308252640,-500.0,0.00045752,120]
[377266008,1754308252649,-500.0,0.00045752,120]
[377266010,1754308252659,-500.0,0.00045752,120]
[377266012,1754308252668,-500.0,0.00045752,120]
[377266014,1754308252678,-500.0,0.00045752,120]
[377266016,1754308252688,-500.0,0.00045752,120]
[377266018,1754308252697,-500.0,0.00045752,120]
[377266020,1754308252707,-500.0,0.00045752,120]
[377266021,1754308252716,-500.0,0.00045752,120]
[377266023,1754308252725,-500.0,0.00045752,120]
[377266025,1754308252735,-500.0,0.00045752,120]
[377266027,1754308252744,-500.0,0.00045752,120]
[377266029,1754308252754,-500.0,0.00045752,120]
[377266031,1754308252764,-500.0,0.00045752,120]
[377266033,1754308252773,-500.0,0.00045752,120]
[377266035,1754308252783,-500.0,0.00045752,120]
[377266037,1754308252793,-500.0,0.00045752,120]
[377266039,1754308252802,-500.0,0.00045752,120]
[377266041,1754308252812,-500.0,0.00045752,120]
[377266043,1754308252821,-500.0,0.00045752,120]
[377266045,1754308252831,-500.0,0.00045752,120]
[377266047,1754308252841,-500.0,0.00045752,120]
[377266049,1754308252850,-500.0,0.00045752,120]
[377266051,1754308252859,-500.0,0.00045752,120]
[377266053,1754308252869,-500.0,0.00045752,120]
[377266055,1754308252878,-500.0,0.00045752,120]
[377266057,1754308252888,-500.0,0.00045752,120]
[377266059,1754308252898,-500.0,0.00045752,120]
[377266061,1754308252907,-500.0,0.00045752,120]
[377266063,1754308252917,-500.0,0.00045752,120]
[377266065,1754308252926,-500.0,0.00045752,120]
[377266067,1754308252935,-500.0,0.00045752,120]
[377266069,1754308252945,-500.0,0.00045752,120]
[377266071,1754308252954,-500.0,0.00045752,120]
[377266073,1754308252963,-500.0,0.00045752,120]
[377266075,1754308252973,-500.0,0.00045752,120]
[377266077,1754308252982,-500.0,0.00045752,120]
[377266079,1754308252992,-500.0,0.00045752,120]
[377266081,1754308253001,-500.0,0.00045752,120]
[377266083,1754308253011,-500.0,0.00045752,120]
[377266085,1754308253021,-500.0,0.00045752,120]
[377266087,1754308253030,-500.0,0.00045752,120]
[377266089,1754308253039,-500.0,0.00045752,120]
[377266091,1754308253049,-500.0,0.00045752,120]
[377266092,1754308253059,-500.0,0.00045752,120]
[377266094,1754308253069,-500.0,0.00045752,120]
[377266096,1754308253079,-500.0,0.00045752,120]
[377266098,1754308253088,-500.0,0.00045752,120]
[377266100,1754308253098,-500.0,0.00045752,120]
[377266102,1754308253108,-500.0,0.00045752,120]
[377266104,1754308253119,-500.0,0.00045752,120]
[377266106,1754308253128,-500.0,0.00045752,120]
[377266109,1754308253139,-500.0,0.00045752,120]
[377266111,1754308253149,-500.0,0.00045752,120]
[377266113,1754308253159,-500.0,0.00045752,120]
[377266114,1754308253169,-500.0,0.00045752,120]
[377266116,1754308253178,-500.0,0.00045752,120]
[377266118,1754308253188,-500.0,0.00045752,120]
[377266120,1754308253197,-500.0,0.00045752,120]
[377266122,1754308253206,-500.0,0.00045752,120]
[377266124,1754308253215,-500.0,0.00045752,120]
[377266126,1754308253224,-500.0,0.00045752,120]
[377266128,1754308253234,-500.0,0.00045752,120]
[377266130,1754308253244,-500.0,0.00045752,120]
[377266132,1754308253254,-500.0,0.00045752,120]
[377266134,1754308253263,-500.0,0.00045752,120]
[377266136,1754308253273,-500.0,0.00045752,120]
[377266138,1754308253283,-500.0,0.00045752,120]
[377266140,1754308253293,-500.0,0.00045752,120]
[377266142,1754308253302,-500.0,0.00045752,120]
[377266144,1754308253312,-500.0,0.00045752,120]
[377266146,1754308253321,-500.0,0.00045752,120]
[377266148,1754308253331,-500.0,0.00045752,120]
[377266150,1754308253340,-500.0,0.00045752,120]
[377266152,1754308253350,-500.0,0.00045752,120]
[377266154,1754308253360,-500.0,0.00045752,120]
[377266156,1754308253369,-500.0,0.00045752,120]
[377266158,1754308253379,-500.0,0.00045752,120]
[377266160,1754308253390,-500.0,0.00045752,120]
[377266162,1754308253403,-500.0,0.00045752,120]
[377266164,1754308253412,-500.0,0.00045752,120]
[377266166,1754308253421,-500.0,0.00045752,120]
[377266168,1754308253430,-500.0,0.00045752,120]
[377266170,1754308253440,-500.0,0.00045752,120]
[377266172,1754308253449,-500.0,0.00045752,120]
[377266174,1754308253458,-500.0,0.00045752,120]
[377266176,1754308253467,-500.0,0.00045752,120]
[377266178,1754308253476,-500.0,0.00045752,120]
[377266180,1754308253486,-500.0,0.00045752,120]
[377266182,1754308253495,-500.0,0.00045752,120]
[377266184,1754308253504,-500.0,0.00045752,120]
[377266186,1754308253513,-500.0,0.00045752,120]
[377266188,1754308253523,-500.0,0.00045752,120]
[377266190,1754308253532,-500.0,0.00045752,120]
[377266192,1754308253542,-500.0,0.00045752,120]
[377266193,1754308253551,-500.0,0.00045752,120]
[377266194,1754308253561,-500.0,0.00045752,120]
[377266195,1754308253570,-500.0,0.00045752,120]
[377266196,1754308253579,-500.0,0.00045752,120]
[377266197,1754308253910,-500.0,0.00045752,120]
[377266198,1754308253936,-500.0,0.00045752,120]
[377266199,1754308253946,-500.0,0.00045752,120]
[377266200,1754308253956,-500.0,0.00045752,120]
[377266201,1754308253965,-500.0,0.00045752,120]
[377266203,1754308253975,-500.0,0.00045752,120]
[377266205,1754308253984,-500.0,0.00045752,120]
[377266207,1754308253994,-500.0,0.00045752,120]
[377266209,1754308254004,-500.0,0.00045752,120]
[377266210,1754308254013,-500.0,0.00045752,120]
[377266211,1754308254022,-500.0,0.00045752,120]
[377266212,1754308254031,-500.0,0.00045752,120]
[377266213,1754308254041,-500.0,0.00045752,120]
[377266214,1754308254050,-500.0,0.00045752,120]
[377266215,1754308254059,-500.0,0.00045752,120]
[377266216,1754308254068,-500.0,0.00045752,120]
[377266217,1754308254078,-500.0,0.00045752,120]
[377266218,1754308254088,-500.0,0.00045752,120]
[377266219,1754308254098,-500.0,0.00045752,120]
[377266220,1754308254108,-695.0,0.0004599,2]
[377266221,1754308254118,-5340.0,0.00046,7]
[377266222,1754308254127,-999.999999,0.00046,120]
[377266223,1754308254140,-151.0,0.00046,120]
[377266224,1754308254149,-500.0,0.00046,120]
[377266225,1754308254159,-587.24,0.00046026,120]
[377266226,1754308254169,-400.0,0.00046026,120]
[377266227,1754308254178,-400.0,0.00046026,120]
[377266228,1754308254188,-400.0,0.00046026,120]
[377266229,1754308254198,-486.1,0.00046026,120]
[377266230,1754308254208,-502.2,0.00046026,120]
[377266231,1754308254218,-400.0,0.00046026,120]
[377266232,1754308254228,-1454.66053297,0.00046027,120]
[377266233,1754308254237,-1000.0,0.00046027,120]
[377266234,1754308254247,-840.0,0.00046027,120]
[377266235,1754308254257,-151.0,0.000461,120]
[377266237,1754308254267,-1687.11713924,0.00046103,22]
[377266239,1754308254277,-288.73031269,0.00046162,28]
[377266242,1754308254291,-587.24,0.000463,120]
[377266244,1754308254301,-400.0,0.000463,120]
[377266246,1754308254311,-400.0,0.000463,120]
[377266248,1754308254320,-400.0,0.000463,120]
[377266250,1754308254329,-486.1,0.000463,120]
[377266252,1754308254339,-502.2,0.000463,120]
[377266254,1754308254349,-400.0,0.000463,120]
[377266256,1754308254359,-214.21,0.000463,30]
[377266258,1754308254368,-150.0,0.00046301,30]
[377266260,1754308254378,-500.0,0.00046301,120]
[377266262,1754308254389,-195.66,0.00046301,120]
[377266264,1754308254403,-152.96,0.00046356,2]
[377266266,1754308254413,-251.4011404,0.00046363,120]
[377266268,1754308254422,-276.54125437,0.00046363,120]
[377266270,1754308254432,-1259.26111057,0.00046363,120]
[377266272,1754308254442,-1554.52647963,0.00046364,120]
[377266274,1754308254452,-443.54448878,0.00046372,120]
[377266276,1754308254462,-403.22226252,0.00046374,120]
[377266278,1754308254474,-2038.86324833,0.00046379,120]
[377266280,1754308254483,-251.4011404,0.00046384,120]
[377266282,1754308254493,-1554.52647963,0.00046386,120]
[377266284,1754308254503,-443.54448878,0.00046393,120]
[377266286,1754308254513,-846.39,0.000464,14]
[377266288,1754308254524,-500.0,0.000464,10]
[377266290,1754308254534,-443.54448878,0.00046403,120]
[377266293,1754308254543,-739.58551872,0.00046405,120]
[377266295,1754308254553,-739.58551872,0.00046409,120]
[377266297,1754308254562,-251.4011404,0.00046412,120]
[377266299,1754308254572,-1259.26111057,0.00046412,120]
[377266301,1754308254581,-2038.86324833,0.00046423,120]
[377266303,1754308254591,-403.22226252,0.00046423,120]
[377266305,1754308254600,-1259.26111057,0.00046424,120]
[377266307,1754308254610,-739.58551872,0.00046425,120]
[377266309,1754308254620,-1554.52647963,0.00046434,120]
[377266311,1754308254630,-1083.0,0.00046439,30]
[377266313,1754308254641,-2038.86324833,0.00046442,120]
[377266315,1754308254651,-276.54125437,0.00046443,120]
[377266317,1754308254662,-504.0,0.00046446,10]
[377266319,1754308254671,-1259.26111057,0.0004645,120]
[377266321,1754308254681,-739.58551872,0.00046452,120]
[377266323,1754308254691,-1554.52647963,0.00046453,120]
[377266325,1754308254700,-2038.86324833,0.00046459,120]
[377266327,1754308254711,-1554.52647963,0.00046463,120]
[377266329,1754308254720,-276.54125437,0.00046463,120]
[377266331,1754308254732,-276.54125437,0.00046464,120]
[377266332,1754308254742,-251.4011404,0.00046466,120]
[377266333,1754308254752,-1259.26111057,0.00046466,120]
[377266334,1754308254762,-2038.86324833,0.00046469,120]
[377266335,1754308254771,-443.54448878,0.00046474,120]
[377266336,1754308254781,-403.22226252,0.00046475,120]
[377266337,1754308254791,-251.4011404,0.00046477,120]
[377266338,1754308254801,-739.58551872,0.00046478,120]
[377266339,1754308254811,-276.54125437,0.00046485,120]
[377266340,1754308254822,-403.22226252,0.00046489,120]
[377266341,1754308254832,-403.22226252,0.00046494,120]
[377266342,1754308254842,-443.54448878,0.000465,120]
[377266343,1754308254851,-150.0,0.00046564,2]
[377266344,1754308254862,-587.24,0.00046574,120]
[377266345,1754308254872,-400.0,0.00046574,120]
[377266346,1754308254881,-400.0,0.00046574,120]
[377266347,1754308254892,-400.0,0.00046574,120]
[377266348,1754308254901,-486.1,0.00046574,120]
[377266349,1754308254911,-502.2,0.00046574,120]
[377266350,1754308254921,-400.0,0.00046574,120]
[377266351,1754308254931,-423.1317721,0.00046575,30]
[377266352,1754308254941,-500.0,0.00046575,120]
[377266353,1754308254951,-200.0,0.00046575,120]
[377266354,1754308254962,-2000.0,0.000466,2]
[377266355,1754308254972,-210.0,0.00046722,120]
[377266356,1754308254982,-200.0,0.000468,30]
[377266357,1754308254991,-5800.0,0.00046824,14]
[377266358,1754308255001,-809.0,0.00046824,2]
[377266359,1754308255010,-955.0,0.00046824,2]
[377266360,1754308255022,-3360.0,0.00046824,2]
[377266361,1754308255032,-1251.0,0.00046824,2]